fUST/lending_fUST_20250720
["ID","MTS","AMOUNT","RATE_DAILY","PERIOD"]
[373353002,1752963047283,-460.0,0.00017996,2]
[373353003,1752963047293,-460.0,0.00017996,2]
[373353004,1752963047303,-460.0,0.00017996,2]
[373353005,1752963047312,-460.0,0.00017996,2]
[373353006,1752963047322,-460.0,0.00017996,2]
[373353007,1752963047332,-460.0,0.00017996,2]
[373353008,1752963047341,-460.0,0.00017996,2]
[373353009,1752963047350,-460.0,0.00017996,2]
[373353010,1752963047360,-460.0,0.00017996,2]
[373353011,1752963047370,-258.22223661,0.00017996,2]
[373353012,1752963047379,-606.0,0.00017996,2]
[373353013,1752963047389,-1156.34,0.00017996,2]
[373353014,1752963047399,-460.0,0.00017996,2]
[373353015,1752963047408,-460.0,0.00017996,2]
[373353016,1752963047417,-460.0,0.00017996,2]
[373353017,1752963047427,-696.75,0.00017996,2]
[373353018,1752963047436,-554.03,0.00017997,2]
[373353019,1752963047447,-460.0,0.00017997,2]
[373353020,1752963047457,-460.0,0.00017997,2]
[373353021,1752963047466,-460.0,0.00017997,2]
[373353022,1752963047476,-460.0,0.00017997,2]
[373353023,1752963047485,-460.0,0.00017997,2]
[373353024,1752963047494,-460.0,0.00017997,2]
[373353025,1752963047503,-460.0,0.00017997,2]
[373353026,1752963047513,-460.0,0.00017997,2]
[373353027,1752963047523,-460.0,0.00017997,2]
[373353028,1752963047532,-156.52735197,0.00017997,2]
[373353029,1752963047541,-728.3,0.00017997,2]
[373353030,1752963047553,-728.3,0.00017997,2]
[373353031,1752963047562,-728.3,0.00017997,2]
[373353032,1752963047572,-728.3,0.00017997,2]
[373353033,1752963047582,-728.3,0.00017997,2]
[373353034,1752963047591,-924.06,0.00017997,2]
[373353035,1752963047603,-460.0,0.00017997,2]
[373353036,1752963047612,-460.0,0.00017998,2]
[373353037,1752963047621,-460.0,0.00017998,2]
[373353038,1752963047631,-460.0,0.00017998,2]
[373353039,1752963047640,-234.48836096,0.00018198,2]
[373353040,1752963047649,-460.0,0.00018264,2]
[373353041,1752963047659,-460.0,0.00018264,2]
[373353042,1752963047668,-685.91,0.00018264,2]
[373353043,1752963047677,-460.0,0.00018265,2]
[373353044,1752963047686,-1064.83,0.00018265,2]
[373353045,1752963047698,-460.0,0.00018265,2]
[373353046,1752963047707,-460.0,0.00018265,2]
[373353047,1752963047716,-1820.47,0.00018265,2]
[373353048,1752963047725,-868.29,0.00018265,2]
[373353049,1752963047734,-460.0,0.00018265,2]
[373353050,1752963047744,-460.0,0.00018265,2]
[373353051,1752963047753,-518.2,0.00018265,2]
[373353052,1752963047762,-460.0,0.00018265,2]
[373353053,1752963047776,-460.0,0.00018265,2]
[373353054,1752963047785,-460.0,0.00018265,2]
[373353055,1752963047794,-460.0,0.00018265,2]
[373353056,1752963047803,-948.74,0.00018265,2]
[373353057,1752963047814,-460.0,0.00018265,2]
[373353058,1752963047823,-460.0,0.00018265,2]
[373353059,1752963047832,-460.0,0.00018265,2]
[373353060,1752963047841,-314.9923924,0.00018266,2]
[373353061,1752963047851,-460.0,0.00018266,2]
[373353062,1752963047861,-383.48,0.00018266,2]
[373353063,1752963047871,-460.0,0.00018266,2]
[373353064,1752963047880,-460.0,0.00018266,2]
[373353065,1752963047890,-334.21962651,0.00018266,2]
[373353066,1752963047900,-460.0,0.00018266,2]
[373353067,1752963047910,-460.0,0.00018266,2]
[373353068,1752963047919,-460.0,0.00018266,2]
[373353069,1752963047929,-460.0,0.00018266,2]
[373353070,1752963047938,-460.0,0.00018266,2]
[373353071,1752963047949,-460.0,0.00018266,2]
[373353072,1752963047959,-460.0,0.00018266,2]
[373353073,1752963047968,-460.0,0.00018266,2]
[373353074,1752963047977,-460.0,0.00018266,2]
[373353075,1752963047986,-460.0,0.00018266,2]
[373353076,1752963047995,-538.37,0.00018266,2]
[373353077,1752963048005,-460.0,0.00018266,2]
[373353078,1752963048014,-460.0,0.00018266,2]
[373353079,1752963048024,-460.0,0.00018266,2]
[373353080,1752963048033,-460.0,0.00018266,2]
[373353081,1752963048042,-460.0,0.00018266,2]
[373353082,1752963048052,-460.0,0.00018266,2]
[373353083,1752963048061,-460.0,0.00018266,2]
[373353084,1752963048071,-460.0,0.00018266,2]
[373353085,1752963048080,-460.0,0.00018266,2]
[373353086,1752963048090,-460.0,0.00018266,2]
[373353087,1752963048099,-460.0,0.00018266,2]
[373353088,1752963048108,-460.0,0.00018266,2]
[373353089,1752963048118,-460.0,0.00018266,2]
[373353090,1752963048127,-460.0,0.00018266,2]
[373353091,1752963048137,-460.0,0.00018267,2]
[373353092,1752963048146,-460.0,0.00018267,2]
[373353093,1752963048155,-460.0,0.00018267,2]
[373353094,1752963048165,-427.84210958,0.00018267,2]
[373353095,1752963048174,-460.0,0.00018267,2]
[373353096,1752963048184,-460.0,0.00018267,2]
[373353097,1752963048195,-460.0,0.00018267,2]
[373353098,1752963048205,-460.0,0.00018267,2]
[373353099,1752963048215,-460.0,0.00018267,2]
[373353100,1752963048224,-460.0,0.00018267,2]
[373353101,1752963048234,-515.67,0.00018267,2]
[373353102,1752963048243,-460.0,0.00018267,2]
[373353103,1752963048253,-460.0,0.00018268,2]
[373353104,1752963048262,-460.0,0.00018268,2]
[373353105,1752963048271,-460.0,0.00018268,2]
[373353106,1752963048280,-460.0,0.00018268,2]
[373353107,1752963048289,-460.0,0.00018268,2]
[373353108,1752963048299,-460.0,0.00018268,2]
[373353109,1752963048308,-460.0,0.00018268,2]
[373353110,1752963048318,-528.11373848,0.00018268,2]
[373353111,1752963048327,-460.0,0.00018268,2]
[373353112,1752963048337,-460.0,0.00018268,2]
[373353113,1752963048347,-460.0,0.00018268,2]
[373353114,1752963048357,-460.0,0.00018268,2]
[373353115,1752963048366,-460.0,0.00018268,2]
[373353116,1752963048376,-153.57597038,0.00018268,2]
[373353117,1752963048387,-413.28915297,0.00018268,2]
[373353118,1752963048396,-460.0,0.00018268,2]
[373353119,1752963048407,-460.0,0.00018268,2]
[373353120,1752963048416,-460.0,0.00018268,2]
[373353121,1752963048426,-460.0,0.00018268,2]
[373353122,1752963048437,-460.0,0.00018268,2]
[373353123,1752963048449,-460.0,0.00018268,2]
[373353124,1752963048459,-460.0,0.00018268,2]
[373353125,1752963048469,-460.0,0.00018269,2]
[373353126,1752963048478,-460.0,0.00018269,2]
[373353127,1752963048489,-460.0,0.00018269,2]
[373353128,1752963048498,-460.0,0.0001827,2]
[373353129,1752963048508,-460.0,0.0001827,2]
[373353130,1752963048518,-215.69,0.0001827,2]
[373353131,1752963048527,-460.0,0.0001827,2]
[373353132,1752963048537,-460.0,0.0001827,2]
[373353133,1752963048547,-460.0,0.0001827,2]
[373353134,1752963048557,-606.0,0.0001827,2]
[373353135,1752963048567,-728.3,0.0001827,2]
[373353136,1752963048577,-1156.34,0.0001827,2]
[373353137,1752963048586,-460.0,0.0001827,2]
[373353138,1752963048596,-460.0,0.0001827,2]
[373353139,1752963048606,-696.75,0.0001827,2]
[373353140,1752963048615,-460.0,0.00018271,2]
[373353141,1752963048625,-460.84,0.00018271,2]
[373353142,1752963048634,-460.0,0.00018271,2]
[373353143,1752963048644,-924.06,0.00018271,2]
[373353144,1752963048653,-460.0,0.00018271,2]
[373353145,1752963048664,-500.0,0.00018521,2]
[373353146,1752963048673,-500.0,0.00018521,2]
[373353147,1752963048683,-500.0,0.00018521,2]
[373353148,1752963048692,-477.83428084,0.00018521,2]
[373353149,1752963048702,-155.4520006,0.00018521,2]
[373353150,1752963048711,-500.0,0.00018521,2]
[373353151,1752963048720,-460.0,0.00018538,2]
[373353152,1752963048730,-685.91,0.00018538,2]
[373353153,1752963048739,-460.0,0.00018539,2]
[373353154,1752963048748,-1064.83,0.00018539,2]
[373353155,1752963048758,-460.0,0.00018539,2]
[373353156,1752963048769,-460.0,0.00018539,2]
[373353157,1752963048781,-1820.47,0.00018539,2]
[373353158,1752963048791,-868.29,0.00018539,2]
[373353159,1752963048800,-460.0,0.00018539,2]
[373353160,1752963048811,-460.0,0.00018539,2]
[373353161,1752963048820,-518.2,0.00018539,2]
[373353162,1752963048829,-460.0,0.00018539,2]
[373353163,1752963048838,-460.0,0.00018539,2]
[373353164,1752963048849,-460.0,0.00018539,2]
[373353165,1752963048859,-948.74,0.00018539,2]
[373353166,1752963048868,-460.0,0.00018539,2]
[373353167,1752963048879,-460.0,0.00018539,2]
[373353168,1752963048888,-460.0,0.00018539,2]
[373353169,1752963048898,-460.0,0.0001854,2]
[373353170,1752963048907,-196.49974055,0.0001854,2]
[373353171,1752963048917,-460.0,0.0001854,2]
[373353172,1752963048927,-460.0,0.0001854,2]
[373353173,1752963048936,-460.0,0.0001854,2]
[373353174,1752963048948,-460.0,0.0001854,2]
[373353175,1752963048957,-460.0,0.0001854,2]
[373353176,1752963048967,-460.0,0.0001854,2]
[373353177,1752963048977,-460.0,0.0001854,2]
[373353178,1752963048986,-460.0,0.0001854,2]
[373353179,1752963048996,-460.0,0.0001854,2]
[373353180,1752963049006,-460.0,0.0001854,2]
[373353181,1752963049015,-538.37,0.0001854,2]
[373353182,1752963049024,-460.0,0.0001854,2]
[373353183,1752963049034,-460.0,0.0001854,2]
[373353184,1752963049044,-460.0,0.0001854,2]
[373353185,1752963049054,-460.0,0.0001854,2]
[373353186,1752963049064,-460.0,0.0001854,2]
[373353187,1752963049073,-460.0,0.0001854,2]
[373353188,1752963049083,-460.0,0.0001854,2]
[373353189,1752963049092,-460.0,0.0001854,2]
[373353190,1752963049101,-460.0,0.0001854,2]
[373353191,1752963049111,-460.0,0.0001854,2]
[373353192,1752963049120,-460.0,0.0001854,2]
[373353193,1752963049130,-460.0,0.0001854,2]
[373353194,1752963049139,-460.0,0.0001854,2]
[373353195,1752963049149,-460.0,0.0001854,2]
[373353196,1752963049158,-460.0,0.00018541,2]
[373353197,1752963049167,-460.0,0.00018541,2]
[373353198,1752963049177,-460.0,0.00018541,2]
[373353199,1752963049186,-460.0,0.00018541,2]
[373353200,1752963049196,-460.0,0.00018541,2]
[373353201,1752963049206,-460.0,0.00018541,2]
[373353202,1752963049215,-515.67,0.00018541,2]
[373353203,1752963049225,-460.0,0.00018541,2]
[373353204,1752963049235,-460.0,0.00018542,2]
[373353205,1752963049245,-460.0,0.00018542,2]
[373353206,1752963049254,-460.0,0.00018542,2]
[373353207,1752963049264,-502.67138086,0.00018542,2]
[373353208,1752963049273,-460.0,0.00018542,2]
[373353209,1752963049283,-460.0,0.00018542,2]
[373353210,1752963049292,-460.0,0.00018542,2]
[373353211,1752963049302,-460.0,0.00018542,2]
[373353212,1752963049311,-460.0,0.00018542,2]
[373353213,1752963049321,-460.0,0.00018542,2]
[373353214,1752963049330,-460.0,0.00018542,2]
[373353215,1752963049340,-460.0,0.00018542,2]
[373353216,1752963049350,-449.04837478,0.00018542,2]
[373353217,1752963049360,-460.0,0.00018542,2]
[373353218,1752963049370,-460.0,0.00018542,2]
[373353219,1752963049380,-460.0,0.00018542,2]
[373353220,1752963049390,-532.66,0.00018542,2]
[373353221,1752963049399,-460.0,0.00018544,2]
[373353222,1752963049409,-460.0,0.00018544,2]
[373353223,1752963049419,-460.0,0.00018544,2]
[373353224,1752963049428,-606.0,0.00018544,2]
[373353225,1752963049438,-728.3,0.00018544,2]
[373353226,1752963049449,-1156.34,0.00018544,2]
[373353227,1752963049459,-460.0,0.00018544,2]
[373353228,1752963049469,-696.75,0.00018544,2]
[373353229,1752963049479,-460.0,0.00018545,2]
[373353230,1752963049489,-460.0,0.00018545,2]
[373353231,1752963049498,-924.06,0.00018545,2]
[373353232,1752963049508,-460.0,0.00018545,2]
[373353233,1752963049518,-355.41884569,0.00018812,2]
[373353234,1752963049554,-685.91,0.00018812,2]
[373353235,1752963049564,-460.0,0.00018813,2]
[373353236,1752963049574,-1064.83,0.00018813,2]
[373353237,1752963049583,-460.0,0.00018813,2]
[373353238,1752963049593,-460.0,0.00018813,2]
[373353239,1752963049602,-1820.47,0.00018813,2]
[373353240,1752963049612,-868.29,0.00018813,2]
[373353241,1752963049621,-460.0,0.00018813,2]
[373353242,1752963049630,-518.2,0.00018813,2]
[373353243,1752963049640,-460.0,0.00018813,2]
[373353244,1752963049649,-460.0,0.00018813,2]
[373353245,1752963049658,-460.0,0.00018813,2]
[373353246,1752963049668,-948.74,0.00018813,2]
[373353247,1752963049679,-460.0,0.00018813,2]
[373353248,1752963049689,-460.0,0.00018813,2]
[373353249,1752963049701,-460.0,0.00018813,2]
[373353250,1752963049711,-460.0,0.00018814,2]
[373353251,1752963049720,-460.0,0.00018814,2]
[373353252,1752963049730,-460.0,0.00018814,2]
[373353253,1752963049740,-460.0,0.00018814,2]
[373353254,1752963049749,-460.0,0.00018814,2]
[373353255,1752963049758,-460.0,0.00018814,2]
[373353256,1752963049768,-460.0,0.00018814,2]
[373353257,1752963049781,-538.37,0.00018814,2]
[373353258,1752963049791,-460.0,0.00018814,2]
[373353259,1752963049800,-460.0,0.00018814,2]
[373353260,1752963049810,-460.0,0.00018814,2]
[373353261,1752963049821,-294.82495466,0.00018814,2]
[373353262,1752963049831,-460.0,0.00018814,2]
[373353263,1752963049841,-460.0,0.00018814,2]
[373353264,1752963049851,-460.0,0.00018814,2]
[373353265,1752963049861,-460.0,0.00018814,2]
[373353266,1752963049872,-460.0,0.00018814,2]
[373353267,1752963049882,-460.0,0.00018814,2]
[373353268,1752963049892,-460.0,0.00018815,2]
[373353269,1752963049903,-460.0,0.00018815,2]
[373353270,1752963049912,-460.0,0.00018815,2]
[373353271,1752963049921,-460.0,0.00018815,2]
[373353272,1752963049931,-460.0,0.00018815,2]
[373353273,1752963049941,-515.67,0.00018815,2]
[373353274,1752963049951,-460.0,0.00018815,2]
[373353275,1752963049960,-460.0,0.00018816,2]
[373353276,1752963049970,-460.0,0.00018816,2]
[373353277,1752963049979,-460.0,0.00018816,2]
[373353278,1752963049989,-460.0,0.00018816,2]
[373353279,1752963049999,-460.0,0.00018816,2]
[373353280,1752963050008,-460.0,0.00018816,2]
[373353281,1752963050018,-460.0,0.00018816,2]
[373353282,1752963050029,-460.0,0.00018816,2]
[373353283,1752963050038,-460.0,0.00018816,2]
[373353284,1752963050048,-460.0,0.00018816,2]
[373353285,1752963050057,-460.0,0.00018816,2]
[373353286,1752963050067,-460.0,0.00018816,2]
[373353287,1752963050077,-460.0,0.00018816,2]
[373353288,1752963050087,-596.54391728,0.00018818,2]
[373353289,1752963050098,-460.0,0.00018818,2]
[373353290,1752963050108,-460.0,0.00018818,2]
[373353291,1752963050118,-606.0,0.00018818,2]
[373353292,1752963050129,-1156.34,0.00018818,2]
[373353293,1752963050138,-460.0,0.00018818,2]
[373353294,1752963050147,-696.75,0.00018818,2]
[373353295,1752963050157,-460.0,0.00018819,2]
[373353296,1752963050166,-460.0,0.00018819,2]
[373353297,1752963050175,-924.06,0.00018819,2]
[373353298,1752963050185,-460.0,0.00018819,2]
[373353299,1752963050194,-2502.06152092,0.000189,2]
[373353300,1752963050203,-528.15372949,0.00018964,2]
[373353301,1752963050213,-359.82009355,0.00019001,2]
[373353302,1752963050222,-685.91,0.00019086,2]
[373353303,1752963050231,-460.0,0.00019087,2]
[373353304,1752963050241,-1064.83,0.00019087,2]
[373353305,1752963050250,-460.0,0.00019087,2]
[373353306,1752963050260,-460.0,0.00019087,2]
[373353307,1752963050269,-1820.47,0.00019087,2]
[373353308,1752963050278,-868.29,0.00019087,2]
[373353309,1752963050288,-460.0,0.00019087,2]
[373353310,1752963050298,-518.2,0.00019087,2]
[373353311,1752963050307,-460.0,0.00019087,2]
[373353312,1752963050316,-460.0,0.00019087,2]
[373353313,1752963050325,-460.0,0.00019087,2]
[373353314,1752963050334,-948.74,0.00019087,2]
[373353315,1752963050344,-460.0,0.00019087,2]
[373353316,1752963050353,-460.0,0.00019087,2]
[373353317,1752963050363,-460.0,0.00019087,2]
[373353318,1752963050373,-460.0,0.00019088,2]
[373353319,1752963050382,-556.45137095,0.00019088,2]
[373353320,1752963050392,-460.0,0.00019088,2]
[373353321,1752963050401,-460.0,0.00019088,2]
[373353322,1752963050411,-538.37,0.00019088,2]
[373353323,1752963050421,-460.0,0.00019088,2]
[373353324,1752963050431,-460.0,0.00019088,2]
[373353325,1752963050440,-460.0,0.00019088,2]
[373353326,1752963050450,-460.0,0.00019088,2]
[373353327,1752963050460,-460.0,0.00019088,2]
[373353328,1752963050469,-460.0,0.00019088,2]
[373353329,1752963050478,-460.0,0.00019088,2]
[373353330,1752963050488,-460.0,0.00019088,2]
[373353331,1752963050498,-460.0,0.00019088,2]
[373353332,1752963050507,-460.0,0.00019089,2]
[373353333,1752963050517,-246.88042738,0.00019089,2]
[373353334,1752963050535,-213.11957262,0.00019089,2]
[373353335,1752963050544,-460.0,0.00019089,2]
[373353336,1752963050554,-460.0,0.00019089,2]
[373353337,1752963050563,-460.0,0.00019089,2]
[373353338,1752963050573,-515.67,0.00019089,2]
[373353339,1752963050583,-460.0,0.00019089,2]
[373353340,1752963050593,-181.09585115,0.0001909,2]
[373353341,1752963050603,-460.0,0.0001909,2]
[373353342,1752963050613,-460.0,0.0001909,2]
[373353343,1752963050622,-460.0,0.0001909,2]
[373353344,1752963050632,-351.15921641,0.0001909,2]
[373353345,1752963050643,-120.05078359,0.0001909,2]
[373353346,1752963050653,-379.94921641,0.0001909,2]
[373353347,1752963050665,-80.05078359,0.0001909,2]
[373353348,1752963050674,-460.0,0.0001909,2]
[373353349,1752963050684,-460.0,0.0001909,2]
[373353350,1752963050694,-460.0,0.00019092,2]
[373353351,1752963050703,-460.0,0.00019092,2]
[373353352,1752963050712,-239.68320377,0.00019092,2]
[373353353,1752963050724,-366.31679623,0.00019092,2]
[373353354,1752963050734,-728.3,0.00019092,2]
[373353355,1752963050743,-1156.34,0.00019092,2]
[373353356,1752963050754,-696.75,0.00019092,2]
[373353357,1752963050763,-468.49320377,0.00019093,2]
[373353358,1752963050854,-455.56679623,0.00019093,2]
[373353359,1752963050864,-151.0,0.00019095,2]
[373353360,1752963050874,-154.69243927,0.00019118,2]
[373353361,1752963050883,-151.0,0.0001914,2]
[373353362,1752963050893,-666.0,0.00019178,2]
[373353363,1752963050904,-367.981375,0.00019178,2]
[373353364,1752963050914,-160.0,0.00019194,2]
[373353365,1752963050923,-321.22124517,0.00019268,2]
[373353366,1752963050933,-460.0,0.00019268,2]
[373353367,1752963050942,-460.0,0.00019268,2]
[373353368,1752963050952,-460.0,0.00019268,2]
[373353369,1752963050962,-460.0,0.00019268,2]
[373353370,1752963050972,-598.09744019,0.00019268,2]
[373353371,1752963050981,-482.82,0.00019268,2]
[373353372,1752963050991,-460.0,0.00019268,2]
[373353373,1752963051000,-1368.37,0.00019268,2]
[373353374,1752963051010,-729.78,0.00019268,2]
[373353375,1752963051020,-460.0,0.00019268,2]
[373353376,1752963051030,-151.0,0.00019329,2]
[373353377,1752963051039,-151.0,0.00019329,2]
[373353378,1752963051049,-151.0,0.00019329,2]
[373353379,1752963051059,-151.0,0.00019329,2]
[373353380,1752963051069,-28466.14259414,0.00019329,2]
[373353381,1752963051081,-3050.12,0.00019329,2]
[373353382,1752963051093,-1503.14143,0.00019329,2]
[373353383,1752963299895,150.0,0.00014737,2]
[373353385,1752963493676,150.0,0.00014748,2]
[373353386,1752963574442,-166.0,0.0001687,2]
[373353387,1752963574464,-10000.0,0.00016993,2]
[373353388,1752963574486,-300.0,0.00017589,2]
[373353389,1752963574508,-183.0,0.00017591,2]
[373353390,1752963574530,-480.0,0.00017692,2]
[373353391,1752963574552,-617.2201332,0.00017694,2]
[373353392,1752963574575,-523.9611747,0.00017891,2]
[373353393,1752963574599,-5748.20169036,0.000179,2]
[373353394,1752963574622,-460.0,0.0001797,2]
[373353395,1752963574642,-447.13081032,0.0001797,2]
[373353396,1752963574665,-460.0,0.0001797,2]
[373353397,1752963574686,-460.0,0.0001797,2]
[373353398,1752963574708,-460.0,0.0001797,2]
[373353399,1752963574731,-460.0,0.0001797,2]
[373353400,1752963574752,-460.0,0.0001797,2]
[373353401,1752963574774,-484.61068144,0.0001797,2]
[373353402,1752963574794,-290.78393118,0.00017971,2]
[373353403,1752963574815,-460.0,0.00017971,2]
[373353404,1752963574837,-460.0,0.00017971,2]
[373353405,1752963574861,-460.36961902,0.00017971,2]
[373353406,1752963574884,-460.0,0.00017971,2]
[373353407,1752963574905,-573.75656196,0.00017971,2]
[373353408,1752963574925,-460.0,0.00017971,2]
[373353409,1752963574953,-460.0,0.00017971,2]
[373353410,1752963574974,-460.0,0.00017971,2]
[373353411,1752963574995,-426.26516037,0.00017971,2]
[373353412,1752963575016,-586.2915561,0.00017971,2]
[373353413,1752963575036,-460.0,0.00017971,2]
[373353414,1752963575056,-439.23399628,0.00017971,2]
[373353415,1752963575076,-460.0,0.00017971,2]
[373353416,1752963575099,-460.0,0.00017971,2]
[373353417,1752963575120,-367.17468507,0.00017971,2]
[373353420,1752963853995,-275.86516894,0.0001691,2]
[373353421,1752963947437,-360.81970871,0.0001689,2]
[373353422,1752963952308,-226.49149221,0.0001689,2]
[373353423,1752964055676,1661.0,0.00027,120]
[373353426,1752964119960,193.94964495,0.00025364,120]
[373353431,1752964187023,217.696678,0.00013699,2]
[373353454,1752964231986,-255.0,0.0001675,2]
[373353455,1752964231997,-334.74691947,0.0001679,2]
[373353456,1752964232007,-345.29149808,0.0001689,2]
[373353458,1752964232016,-1295.68385736,0.0001691,2]
[373353460,1752964232026,-167.50850779,0.0001701,2]
[373353461,1752964232036,-1365.53392044,0.00017871,2]
[373353463,1752964232047,-300.0,0.00017888,2]
[373353464,1752964232057,-300.0,0.00017888,2]
[373353465,1752964232067,-300.0,0.00017888,2]
[373353466,1752964232076,-300.0,0.00017888,2]
[373353468,1752964232086,-37.43616306,0.00017889,2]
[373353469,1752964232098,-422.56383694,0.00017889,2]
[373353470,1752964232107,-123.94179119,0.00017889,2]
[373353517,1752964238046,-336.05820881,0.00017889,2]
[373353519,1752964238056,-460.0,0.00017889,2]
[373353521,1752964238065,-460.0,0.00017889,2]
[373353523,1752964238075,-460.0,0.00017889,2]
[373353525,1752964238084,-460.0,0.00017889,2]
[373353527,1752964238093,-460.0,0.00017889,2]
[373353529,1752964238102,-460.0,0.00017889,2]
[373353531,1752964238111,-460.0,0.00017889,2]
[373353533,1752964238120,-460.0,0.00017889,2]
[373353535,1752964238130,-330.98545394,0.00017889,2]
[373353537,1752964238139,-460.0,0.00017889,2]
[373353539,1752964238149,-1377.44,0.00017889,2]
[373353541,1752964238158,-460.0,0.00017889,2]
[373353543,1752964238168,-460.0,0.00017889,2]
[373353545,1752964238177,-312.81081687,0.00017889,2]
[373353547,1752964238186,-460.0,0.00017889,2]
[373353549,1752964238196,-460.0,0.00017889,2]
[373353551,1752964238205,-460.0,0.00017889,2]
[373353553,1752964238215,-460.0,0.00017889,2]
[373353555,1752964238224,-500.0,0.00017889,2]
[373353557,1752964238236,-460.0,0.00017889,2]
[373353560,1752964238246,-460.0,0.00017889,2]
[373353562,1752964238256,-1199.4,0.00017889,2]
[373353564,1752964238265,-525.45066268,0.00017889,2]
[373353566,1752964238275,-460.0,0.00017889,2]
[373353568,1752964238284,-460.0,0.00017889,2]
[373353570,1752964238295,-460.0,0.00017889,2]
[373353572,1752964238308,-460.0,0.00017889,2]
[373353575,1752964238317,-460.0,0.00017889,2]
[373353577,1752964238327,-684.28,0.00017889,2]
[373353579,1752964238336,-460.0,0.00017889,2]
[373353581,1752964238348,-460.0,0.00017889,2]
[373353582,1752964238358,-460.0,0.00017889,2]
[373353585,1752964238369,-2304.34,0.00017889,2]
[373353587,1752964238379,-460.0,0.00017889,2]
[373353588,1752964238389,-460.0,0.00017889,2]
[373353590,1752964238399,-460.0,0.00017889,2]
[373353593,1752964238408,-460.0,0.00017889,2]
[373353595,1752964238418,-460.0,0.00017889,2]
[373353597,1752964238427,-460.0,0.00017889,2]
[373353599,1752964238436,-460.0,0.00017889,2]
[373353601,1752964238445,-460.0,0.00017889,2]
[373353603,1752964238455,-460.0,0.00017889,2]
[373353604,1752964238465,-460.0,0.00017889,2]
[373353607,1752964238475,-460.0,0.00017889,2]
[373353608,1752964238485,-891.68,0.00017889,2]
[373353611,1752964238495,-460.0,0.00017889,2]
[373353613,1752964238504,-460.0,0.00017889,2]
[373353615,1752964238513,-460.0,0.00017889,2]
[373353617,1752964238522,-460.0,0.00017889,2]
[373353619,1752964238531,-460.0,0.00017889,2]
[373353621,1752964238540,-500.55402568,0.00017889,2]
[373353623,1752964238549,-222.28590376,0.00017889,2]
[373353624,1752964238558,-460.0,0.00017889,2]
[373353626,1752964238567,-460.0,0.00017889,2]
[373353628,1752964238577,-460.0,0.00017889,2]
[373353630,1752964238586,-460.0,0.00017889,2]
[373353632,1752964238595,-460.0,0.00017889,2]
[373353634,1752964238605,-460.0,0.00017889,2]
[373353636,1752964238614,-460.0,0.00017889,2]
[373353638,1752964238623,-460.0,0.00017889,2]
[373353640,1752964238633,-460.0,0.00017889,2]
[373353643,1752964238642,-460.0,0.00017889,2]
[373353645,1752964238651,-475.56822853,0.00017889,2]
[373353647,1752964238660,-500.0,0.00017889,2]
[373353648,1752964238669,-68948.91436842,0.0001789,2]